bitfinex/quotes_SOLUSD_20240905
["timestamp","ask_amount","ask_price","bid_price","bid_amount"]
[1725507408377,23.1073,131.92,131.83,1.51653695]
[1725507408596,23.1073,131.92,131.82,22.8215]
[1725507408597,46.51427501,131.91,131.82,22.8215]
[1725507409077,7.58,131.93,131.84,7.5846]
[1725507409278,7.58,131.93,131.8,0.8551503]
[1725507409279,1.51427501,131.92,131.8,0.8551503]
[1725507409496,7.5799,131.93,131.84,7.5846]
[1725507409682,7.5799,131.93,131.83,18.9632]
[1725507409683,1.51427501,131.92,131.83,18.9632]
[1725507410198,9.09417501,131.93,131.85,6.1794]
[1725507410694,7.5789,131.95,131.85,6.1794]
[1725507410993,7.5789,131.95,131.86,45.0]
[1725507411291,7.5789,131.95,131.85,6.1794]
[1725507411497,9.09387501,131.94,131.85,6.1794]
[1725507411823,7.5783,131.96,131.86,45.0]
[1725507412388,1.51427501,131.95,131.86,45.0]
[1725507412585,1.51427501,131.95,131.86,7.5835]
[1725507412885,1.51427501,131.98,131.86,7.5835]
[1725507413093,7.5795,131.94,131.86,7.5835]
[1725507413476,7.5813,131.91,131.85,6.1794]
[1725507413688,7.5801,131.93,131.85,6.1794]
[1725507413890,9.09477501,131.92,131.85,6.1794]
[1725507414073,7.5805,131.92,131.85,6.1794]
[1725507414690,1.51427501,131.96,131.85,13.7634]
[1725507414691,7.5795,131.94,131.85,13.7634]
[1725507414884,9.09427501,131.93,131.86,1.51597995]
[1725507415087,7.5805,131.92,131.85,13.7634]
[1725507415775,7.5796,131.94,131.86,7.5836]
[1725507416389,7.5799,131.93,131.86,7.5836]
[1725507417099,7.5806,131.92,131.85,6.1794]
[1725507417280,1.51427501,131.91,131.84,15.0646]
[1725507417481,1.51427501,131.91,131.85,0.64281031]
[1725507417786,7.5817,131.9,131.84,15.0646]
[1725507418187,7.5822,131.89,131.84,15.0646]
[1725507418880,7.5827,131.88,131.84,15.0646]
[1725507419577,1.51427501,131.91,131.84,15.0646]
[1725507419904,7.5813,131.91,131.84,15.0646]
[1725507420504,7.5813,131.91,131.84,22.6495]
[1725507420884,7.5813,131.91,131.85,7.5842]
[1725507421405,3.26282773,131.94,131.84,15.0646]
[1725507421602,1.51427501,131.93,131.84,15.0646]
[1725507422098,1.51427501,131.92,131.84,15.0646]
[1725507422298,46.51427501,131.92,131.84,15.0646]
[1725507422475,46.51427501,131.92,131.84,22.6494]
[1725507422886,1.51427501,131.96,131.85,7.584]
[1725507423307,1.51427501,131.95,131.85,7.584]
[1725507423490,1.51427501,131.95,131.85,7.5843]
[1725507424088,1.51427501,131.96,131.88,7.5824]
[1725507424319,1.51427501,131.96,131.89,7.5819]
[1725507424988,1.51427501,131.96,131.88,7.5825]
[1725507425189,1.51427501,131.95,131.87,6.6471]
[1725507425717,1.51427501,131.95,131.84,21.7117]
[1725507425890,1.51427501,131.95,131.84,29.2965]
[1725507426091,7.0814,131.91,131.84,29.2965]
[1725507426294,7.0814,131.91,131.85,9.10052909]
[1725507426509,7.5803,131.93,131.86,7.5837]
[1725507426713,20.46107501,131.95,131.87,7.5832]
[1725507426714,7.5804,131.92,131.87,7.5832]
[1725507427419,1.51427501,131.95,131.85,26.5438]
[1725507428192,1.51427501,131.95,131.84,21.7117]
[1725507428494,7.5823,131.89,131.84,29.2965]
[1725507429005,7.5808,131.92,131.86,7.5837]
[1725507429598,7.5809,131.91,131.86,7.5837]
[1725507429800,7.5816,131.9,131.85,7.5842]
[1725507429993,7.5809,131.91,131.85,7.5842]
[1725507430219,1.51427501,131.95,131.87,7.5827]
[1725507430220,7.5803,131.93,131.87,7.5827]
[1725507430391,7.5832,131.87,131.84,21.7117]
[1725507430597,1.51427501,131.92,131.84,21.7117]
[1725507430800,7.5827,131.88,131.84,21.7117]
[1725507431718,7.5821,131.89,131.84,21.7117]
[1725507431919,7.5828,131.88,131.84,21.7117]
[1725507432300,1.51427501,131.91,131.8,22.4274503]
[1725507432503,7.5838,131.86,131.8,30.0144503]
[1725507432704,7.5832,131.87,131.81,7.5866]
[1725507433908,7.582,131.9,131.81,18.9664]
[1725507434214,7.5827,131.88,131.81,26.5526]
[1725507434526,7.5827,131.88,131.82,7.5859]
[1725507435711,9.09757501,131.87,131.81,26.5529]
[1725507436022,7.5841,131.86,131.81,18.9664]
[1725507436224,7.5844,131.85,131.8,22.4274503]
[1725507436398,7.5849,131.84,131.8,22.4274503]
[1725507437110,7.5866,131.81,131.75,7.5901]
[1725507437424,72.73,131.86,131.74,18.9753]
[1725507437739,7.5883,131.79,131.74,18.9753]
[1725507438203,7.5884,131.78,131.75,1.51752114]
[1725507438403,7.5878,131.79,131.74,26.5658]
[1725507439023,7.5878,131.79,131.74,18.9753]
[1725507439624,7.5901,131.75,131.7,7.5929]
[1725507439814,7.5901,131.75,131.69,14.1902]
[1725507440323,7.5919,131.72,131.67,0.8551503]
[1725507440523,15.0488,131.76,131.67,0.8551503]
[1725507440524,7.5896,131.76,131.7,7.5924]
[1725507440727,22.0402,131.8,131.69,18.9828]
[1725507441021,50.0,131.83,131.72,18.9793]
[1725507441022,3.3201553,131.83,131.72,18.9793]
[1725507441200,50.0,131.8,131.68,18.9839]
[1725507441403,50.0,131.8,131.68,48.9839]
[1725507441599,45.0,131.79,131.68,18.9839]
[1725507441801,7.5892,131.77,131.68,18.9839]
[1725507442002,45.0,131.76,131.68,26.5779]
[1725507442529,7.5878,131.79,131.69,7.5935]
[1725507442715,45.0,131.78,131.7,7.5929]
[1725507442919,45.0,131.78,131.71,7.5922]
[1725507443524,52.5884,131.78,131.71,7.5922]
[1725507443736,52.5884,131.78,131.72,7.5918]
[1725507444332,52.5884,131.78,131.7,18.9811]
[1725507444832,52.5884,131.78,131.71,7.5924]
[1725507446131,7.5896,131.76,131.7,18.9811]
[1725507446434,66.2796,131.75,131.67,0.8551503]
[1725507446608,73.8702,131.75,131.69,7.5935]
[1725507446810,7.5909,131.74,131.68,7.5939]
[1725507447005,52.5914,131.73,131.67,8.4495503]
[1725507447200,52.5914,131.73,131.67,0.8551503]
[1725507447201,45.0,131.73,131.67,0.8551503]
[1725507447411,45.0,131.74,131.68,7.5938]
[1725507447607,52.5909,131.74,131.68,7.5938]
[1725507448237,45.0,131.74,131.67,19.8413503]
[1725507448531,45.0,131.74,131.67,27.4354503]
[1725507449314,45.0,131.74,131.67,19.8413503]
[1725507449525,21.4443,131.79,131.71,7.5923]
[1725507449833,3.22858631,131.81,131.71,18.9799]
[1725507450023,6.3292,131.82,131.71,18.9799]
[1725507451135,7.5878,131.79,131.71,18.9799]
[1725507451644,6.5774,131.86,131.71,38.7582]
[1725507451806,23.3171,131.87,131.81,7.5865]
[1725507453514,15.7339,131.87,131.82,7.586]
[1725507453715,7.5826,131.88,131.82,7.586]
[1725507453910,7.5821,131.89,131.83,7.5853]
[1725507454235,7.5803,131.92,131.83,18.9635]
[1725507454413,7.5798,131.93,131.86,7.5835]
[1725507454618,7.5798,131.93,131.87,7.5831]
[1725507455333,6.4276,131.94,131.88,7.5826]
[1725507455633,56.0635,131.99,131.89,7.5819]
[1725507455831,59.39108599,131.99,131.88,18.9565]
[1725507456330,59.39108599,131.99,131.9,7.5813]
[1725507456732,9.39108599,131.99,131.9,7.5813]
[1725507456940,6.0635,131.99,131.9,7.5813]
[1725507457111,7.5774,131.98,131.9,18.9523]
[1725507457314,7.5775,131.97,131.9,18.9523]
[1725507457512,7.5775,131.97,131.91,7.5807]
[1725507457746,7.5781,131.96,131.9,18.9523]
[1725507458235,7.5775,131.97,131.91,7.5809]
[1725507458640,7.5768,131.99,131.92,7.5802]
[1725507458835,7.577,131.98,131.92,7.5802]
[1725507460335,7.5784,131.96,131.9,18.9523]
[1725507461619,7.5784,131.96,131.91,7.5809]
[1725507461919,16.3924,132.0,131.91,7.5809]
[1725507462122,45.0,131.99,131.91,7.5809]
[1725507462756,45.0,131.99,131.9,18.9523]
[1725507462920,45.0,131.99,131.91,1.5155673]
[1725507463224,6.3293,132.03,131.93,7.5792]
[1725507463938,6.3293,132.03,131.94,7.5789]
[1725507464122,16.3224,132.04,131.95,7.5785]
[1725507464741,56.4495,132.07,131.96,7.578]
[1725507465547,59.72108214,132.07,131.96,7.578]
[1725507466231,7.5752,132.01,131.96,7.578]
[1725507466419,7.5746,132.02,131.96,7.578]
[1725507467437,45.0,132.06,131.95,15.4161]
[1725507467948,7.5752,132.01,131.95,22.9946]
[1725507469334,7.5746,132.02,131.97,7.5774]
[1725507469828,59.72108214,132.07,131.95,15.4161]
[1725507469829,7.5752,132.01,131.96,7.5779]
[1725507470527,9.72108214,132.07,131.97,7.5774]
[1725507470723,7.5745,132.03,131.97,7.5774]
[1725507470925,7.5746,132.02,131.97,7.5774]
[1725507471641,7.5741,132.03,131.98,7.5768]
[1725507472039,7.5746,132.02,131.98,7.5768]
[1725507472332,7.5746,132.02,131.97,7.5774]
[1725507473146,50.0,132.1,131.98,18.9409]
[1725507473443,7.5736,132.04,131.99,7.5762]
[1725507474323,7.5736,132.04,131.98,18.9409]
[1725507474324,3.22919665,132.1,132.01,7.575]
[1725507474526,67.0462,132.11,132.01,7.575]
[1725507474843,45.0,132.1,132.0,7.5755]
[1725507475537,45.0,132.1,132.01,7.5751]
[1725507475846,95.0,132.1,132.0,18.9382]
[1725507476049,45.0,132.1,132.0,18.9382]
[1725507476541,45.0,132.1,132.0,26.5139]
[1725507476850,25.27977722,132.11,132.01,6.0344]
[1725507477221,25.27977722,132.11,132.02,16.3375]
[1725507477222,3.23357722,132.11,132.02,16.3375]
[1725507477433,7.5712,132.08,132.02,23.9115]
[1725507477650,7.5718,132.07,132.02,23.9115]
[1725507478026,7.5712,132.08,132.03,7.5739]
[1725507479631,7.5717,132.07,132.03,7.5739]
[1725507479848,7.5717,132.07,132.02,42.848]
[1725507480330,7.5717,132.07,132.03,7.574]
[1725507480527,7.5712,132.08,132.03,7.574]
[1725507480840,7.5707,132.09,132.04,7.5733]
[1725507481043,4.0856418,132.13,132.02,35.2734]
[1725507481234,50.0,132.11,132.02,16.3375]
[1725507481434,7.5721,132.07,132.02,23.912]
[1725507481636,7.573,132.05,132.02,16.3375]
[1725507482128,7.5735,132.04,132.02,16.3375]
[1725507482329,50.0,132.11,131.99,16.4264]
[1725507482531,45.0,132.1,131.99,30.6178]
[1725507482843,45.0,132.1,132.0,7.5755]
[1725507483029,45.0,132.1,132.01,7.5751]
[1725507483444,7.5727,132.06,132.01,7.5751]
[1725507484252,7.5717,132.07,132.02,7.5743]
[1725507485561,4.0856418,132.13,132.02,18.9356]
[1725507485728,0.8551503,132.13,132.03,15.0176]
[1725507486367,0.8551503,132.13,132.04,25.324]
[1725507486653,7.5699,132.11,132.04,25.324]
[1725507486886,7.5689,132.12,132.06,7.5722]
[1725507488428,8.4234503,132.13,132.06,18.9295]
[1725507488630,0.8551503,132.13,132.06,18.9295]
[1725507488841,8.4238503,132.13,132.06,26.5017]
[1725507489053,7.5689,132.12,132.07,7.5717]
[1725507489960,7.5689,132.12,132.06,26.5017]
[1725507490133,7.5697,132.11,132.06,18.9295]
[1725507490636,0.8551503,132.13,132.04,6.3916]
[1725507490841,7.5707,132.09,132.04,13.965]
[1725507491544,0.8551503,132.13,132.05,7.5726]
[1725507491747,7.5701,132.1,132.05,7.5726]
[1725507492858,7.571,132.09,132.04,13.9649]
[1725507493553,7.57,132.1,132.05,7.5728]
[1725507494152,7.5707,132.09,132.04,6.3916]
[1725507494339,7.5707,132.09,132.03,41.5257]
[1725507494340,7.5734,132.05,132.03,15.0176]
[1725507494540,7.5724,132.06,132.03,15.0176]
[1725507495447,7.5731,132.05,132.03,15.0176]
[1725507495660,65.4236,132.12,132.01,6.5623]
[1725507495661,7.5734,132.04,132.01,6.5623]
[1725507495862,18.63741938,132.12,132.01,6.5623]
[1725507496065,7.5723,132.06,132.01,14.1369]
[1725507496239,45.0,132.11,132.01,6.5623]
[1725507497262,7.5706,132.09,132.04,7.573]
[1725507497643,7.5699,132.11,132.05,7.5728]
[1725507498157,7.5699,132.11,132.06,23.1935]
[1725507498360,7.5699,132.11,132.07,6.2358]
[1725507499040,0.8551503,132.13,132.07,6.2358]
[1725507501067,7.5711,132.09,132.07,6.2358]
[1725507501245,0.8551503,132.13,132.04,40.4247]
[1725507501848,7.5707,132.09,132.04,47.9977]
[1725507503158,0.8551503,132.13,132.04,21.4919]
[1725507503769,45.8551503,132.13,132.04,21.4919]
[1725507504148,7.5718,132.07,132.04,21.4919]
[1725507505250,7.5713,132.08,132.04,21.4919]
[1725507505451,7.5706,132.09,132.04,29.0651]
[1725507506273,7.57,132.1,132.05,7.5728]
[1725507510576,0.8551503,132.13,132.04,29.0652]
[1725507510778,7.5724,132.06,132.04,21.4919]
[1725507511155,7.5718,132.07,132.04,21.4919]
[1725507512252,7.5724,132.06,132.04,21.4919]
[1725507512775,7.5718,132.07,132.04,21.4919]
[1725507515858,7.5713,132.08,132.04,21.4919]
[1725507516081,7.5707,132.09,132.04,29.0653]
[1725507516590,0.8551503,132.13,132.04,40.425]
[1725507516915,0.8551503,132.13,132.06,18.9301]
[1725507517396,8.4235503,132.13,132.08,7.5706]
[1725507518269,0.8551503,132.13,132.09,7.5705]
[1725507518467,8.4234503,132.13,132.08,26.4979]
[1725507518971,7.569,132.12,132.08,18.9269]
[1725507519373,7.569,132.12,132.08,26.498]
[1725507519573,8.4235503,132.13,132.08,26.498]
[1725507520383,7.569,132.12,132.08,18.9269]
[1725507520689,7.5701,132.1,132.05,18.9316]
[1725507521267,0.8551503,132.13,132.06,7.5723]
[1725507521268,7.5693,132.12,132.06,7.5723]
[1725507521472,0.8551503,132.13,132.06,7.5723]
[1725507521672,7.5695,132.11,132.07,7.5717]
[1725507522185,7.5704,132.1,132.05,18.9316]
[1725507522389,0.8551503,132.13,132.04,21.4919]
[1725507522693,45.8551503,132.13,132.04,21.4919]
[1725507523072,7.5716,132.08,132.04,21.4919]
[1725507525492,7.5716,132.08,132.04,29.0652]
[1725507525872,45.8551503,132.13,132.04,29.0652]
[1725507526676,7.5709,132.09,132.05,7.5728]
[1725507528291,6.0003,132.12,132.01,24.1413]
[1725507528483,45.0,132.11,132.01,24.1413]
[1725507528687,95.0,132.11,132.01,16.5666]
[1725507528885,45.0,132.11,132.01,16.5666]
[1725507530179,45.0,132.11,132.01,24.1416]
[1725507531401,7.5729,132.05,132.01,24.1416]
[1725507532699,7.5729,132.05,132.01,16.5666]
[1725507535098,7.5725,132.06,132.01,24.1417]
[1725507536604,7.5729,132.05,132.01,24.1417]
[1725507538889,15.6267,132.09,132.0,6.1275]
[1725507539098,45.0,132.08,131.99,18.9401]
[1725507539707,7.5742,132.03,131.99,18.9401]
[1725507540008,45.0,132.08,131.99,26.5162]
[1725507540213,7.5738,132.04,132.0,7.5756]
[1725507540508,17.4846503,132.13,132.02,15.6212]
[1725507540686,7.5704,132.1,132.05,7.5723]
[1725507540887,20.81714387,132.13,132.04,13.7388]
[1725507541083,7.5722,132.07,132.02,15.6212]
[1725507541398,7.5722,132.07,132.02,23.1955]
[1725507541605,7.5705,132.09,132.04,7.5733]
[1725507542513,20.81714387,132.13,132.05,7.5726]
[1725507542813,7.5706,132.09,132.04,7.5733]
[1725507543111,20.81714387,132.13,132.02,34.557]
[1725507543310,7.5713,132.08,132.03,7.5739]
[1725507544106,7.5719,132.07,132.02,42.1315]
[1725507544319,45.0,132.12,132.02,34.557]
[1725507544320,7.5723,132.06,132.02,34.557]
[1725507544492,7.5718,132.07,132.02,42.1315]
[1725507546711,7.5712,132.08,132.03,7.574]
[1725507547293,20.81714387,132.13,132.04,7.5733]
[1725507547294,7.5707,132.09,132.04,7.5733]
[1725507549509,20.81714387,132.13,132.02,34.557]
[1725507549714,7.5723,132.06,132.02,34.557]
[1725507549894,7.5718,132.07,132.02,42.1315]
[1725507550315,7.5718,132.07,132.03,7.5739]
[1725507551415,7.5718,132.07,132.02,34.557]
[1725507551416,7.5713,132.08,132.04,7.5733]
[1725507553819,20.81714387,132.13,132.02,34.557]
[1725507553998,20.81714387,132.13,132.05,7.5724]
[1725507553999,7.5706,132.09,132.05,7.5724]
[1725507554200,7.5714,132.08,132.04,26.5056]
[1725507555926,45.0,132.12,132.04,26.5056]
[1725507556415,45.0,132.12,132.02,23.1952]
[1725507557922,95.0,132.12,132.01,6.1655]
[1725507558097,50.0,132.08,131.97,6.5272]
[1725507558604,45.0,132.07,131.97,6.5272]
[1725507559906,7.5743,132.03,131.97,14.1044]
[1725507560700,7.5734,132.05,131.98,7.5766]
[1725507561028,7.5737,132.04,131.98,7.5766]
[1725507561958,16.2318,132.09,131.97,25.4704]
[1725507562108,16.2318,132.09,132.0,18.9391]
[1725507562311,7.5717,132.08,132.03,7.5739]
[1725507562713,7.5717,132.08,132.02,7.5746]
[1725507563813,16.2318,132.09,132.0,26.5144]
[1725507564203,7.5731,132.05,132.0,18.9391]
[1725507564398,7.5731,132.05,132.0,26.5147]
[1725507564830,19.45407828,132.09,131.99,7.576]
[1725507565125,7.5729,132.05,131.99,7.576]
[1725507565314,7.5737,132.04,131.97,36.03847825]
[1725507565708,7.5729,132.05,131.99,7.576]
[1725507566114,7.5729,132.05,132.0,7.5757]
[1725507567826,7.5737,132.04,131.98,7.5768]
[1725507568126,7.5737,132.04,131.99,7.5761]
[1725507568633,7.5729,132.05,131.99,7.5761]
[1725507569627,7.5738,132.04,131.99,7.5761]
[1725507571627,7.5729,132.05,132.0,7.5757]
[1725507572018,7.5735,132.04,131.99,7.5763]
[1725507572421,95.0,132.08,131.97,25.4707]
[1725507572727,7.574,132.03,131.98,7.5767]
[1725507572926,45.0,132.08,131.97,25.4707]
[1725507573132,7.5735,132.04,131.99,7.5763]
[1725507573323,7.5735,132.04,132.0,7.5757]
[1725507573635,7.5735,132.04,131.99,7.5762]
[1725507573836,7.5729,132.05,132.0,7.5756]
[1725507574341,45.0,132.08,132.01,7.575]
[1725507574513,45.0,132.08,132.0,18.9391]
[1725507576412,45.0,132.08,132.01,7.5751]
[1725507576413,7.5723,132.06,132.01,7.5751]
[1725507577009,7.5718,132.07,132.02,7.5745]
[1725507577834,16.2318,132.09,132.01,7.575]
[1725507577835,7.5723,132.06,132.01,7.575]
[1725507578334,7.5723,132.06,131.97,6.5272]
[1725507578335,16.2318,132.09,131.97,25.4703]
[1725507578531,45.0,132.08,131.97,25.4703]
[1725507578837,7.5746,132.02,131.97,33.0476]
[1725507579022,6.34,132.07,131.96,26.51644132]
[1725507579228,45.0,132.06,131.96,26.51644132]
[1725507579414,45.0,132.06,131.96,28.68152066]
[1725507579613,15.0199,132.05,131.94,25.2013]
[1725507579819,45.0,132.04,131.94,25.2013]
[1725507580022,45.0,132.04,131.94,32.7803]
[1725507580347,6.2009,132.03,131.92,7.5797]
[1725507580521,45.0,132.02,131.92,7.5797]
[1725507581152,45.0,132.02,131.91,7.5808]
[1725507581724,95.0,132.02,131.91,7.5808]
[1725507581947,15.4956,132.01,131.9,34.6199]
[1725507582137,45.0,132.0,131.9,18.9524]
[1725507582332,95.0,132.0,131.9,18.9524]
[1725507582931,7.581,131.91,131.86,18.9583]
[1725507583244,7.5821,131.89,131.83,23.7864]
[1725507583434,7.5815,131.9,131.84,7.5848]
[1725507585638,7.5821,131.89,131.84,7.5848]
[1725507585847,7.5821,131.89,131.83,23.7865]
[1725507587132,15.1155,131.92,131.83,23.7865]
[1725507587328,45.0,131.91,131.83,23.7865]
[1725507588735,45.0,131.91,131.84,7.5847]
[1725507589930,15.1155,131.92,131.85,18.9608]
[1725507590243,45.0,131.91,131.85,18.9608]
[1725507590943,52.582,131.9,131.85,18.9608]
[1725507591145,7.582,131.9,131.85,18.9608]
[1725507591332,7.5809,131.91,131.85,26.5449]
[1725507592031,7.5821,131.89,131.85,18.9608]
[1725507592652,7.5816,131.9,131.85,26.5451]
[1725507592954,7.5809,131.91,131.86,7.5835]
[1725507593334,7.5803,131.92,131.86,7.5835]
[1725507593735,6.4969,131.96,131.87,25.0109]
[1725507593943,7.5793,131.94,131.89,7.582]
[1725507594759,50.0,131.98,131.88,7.5825]
[1725507595636,50.0,131.98,131.87,25.0109]
[1725507595832,50.0,131.98,131.85,1.51614297]
[1725507596160,45.0,131.97,131.86,7.5837]
[1725507596336,50.0,131.96,131.84,6.51]
[1725507596527,45.0,131.95,131.85,7.5842]
[1725507598935,7.5814,131.91,131.85,7.5842]
[1725507599542,7.5816,131.9,131.85,7.5842]
[1725507600445,7.5822,131.89,131.84,14.0947]
[1725507601243,7.5822,131.89,131.84,6.51]
[1725507601456,7.5822,131.89,131.84,14.0948]
[1725507601750,7.5815,131.9,131.85,7.5843]
[1725507602741,7.5809,131.91,131.86,7.5837]
[1725507603249,48.31832029,131.95,131.85,18.9598]
[1725507603564,7.5791,131.95,131.88,18.9564]
[1725507603742,7.5791,131.95,131.89,15.6759]
[1725507604157,7.578,131.96,131.91,13.7176]
[1725507604453,7.5774,131.98,131.92,7.5802]
[1725507604843,7.5774,131.98,131.92,7.5803]
[1725507605434,7.5774,131.98,131.93,7.5796]
[1725507605637,7.5763,132.0,131.94,7.5791]
[1725507606054,7.5751,132.02,131.95,7.5785]
[1725507606265,7.5752,132.01,131.95,7.5785]
[1725507606944,7.5748,132.02,131.96,7.5779]
[1725507607949,6.4835,132.04,131.95,15.5708]
[1725507607950,7.5763,132.0,131.95,15.5708]
[1725507608648,7.5751,132.01,131.95,15.5708]
[1725507608958,6.4835,132.04,131.92,15.5708]
[1725507609159,95.0,132.03,131.92,15.5708]
[1725507609342,95.0,132.03,131.92,23.1511]
[1725507609343,7.5775,131.97,131.92,23.1511]
[1725507609541,95.0,132.03,131.92,23.1511]
[1725507609965,45.0,132.03,131.92,23.1511]
[1725507610260,6.4835,132.04,131.93,18.9494]
[1725507610978,6.4835,132.04,131.93,26.5287]
[1725507611163,6.4835,132.04,131.93,18.9494]
[1725507611466,6.4835,132.04,131.92,15.5708]
[1725507611467,50.0,132.03,131.92,15.5708]
[1725507611645,95.0,132.03,131.92,15.5708]
[1725507614069,50.0,132.01,131.92,15.5708]
[1725507614246,45.0,132.0,131.92,15.5708]
[1725507614450,7.5781,131.96,131.92,15.5708]
[1725507615265,7.5787,131.95,131.92,15.5708]
[1725507615463,7.578,131.96,131.92,15.5708]
[1725507615848,45.0,132.0,131.92,23.1505]
[1725507616050,7.5763,131.99,131.93,7.5792]
[1725507616249,7.5763,131.99,131.94,7.5791]
[1725507617974,50.0,132.03,131.92,23.1506]
[1725507618279,45.0,132.02,131.92,23.1506]
[1725507618457,7.5775,131.97,131.92,23.1506]
[1725507619167,7.5769,131.98,131.93,7.5797]
[1725507620070,7.5769,131.98,131.94,7.5791]
[1725507621372,7.5764,131.99,131.94,7.5791]
[1725507621664,45.0,132.02,131.92,15.5708]
[1725507621853,45.0,132.03,131.92,15.5708]
[1725507622552,95.0,132.03,131.92,15.5708]
[1725507622870,7.5793,131.94,131.92,15.5708]
[1725507623075,7.5797,131.93,131.92,15.5708]
[1725507623253,7.5792,131.94,131.92,15.5708]
[1725507623770,7.5786,131.95,131.92,15.5708]
[1725507623963,15.653,132.0,131.92,15.5708]
[1725507624274,45.0,131.99,131.92,15.5708]
[1725507625371,45.0,131.99,131.92,23.151]
[1725507625557,3.22366787,132.01,131.93,7.5796]
[1725507625748,50.0,132.03,131.93,7.5796]
[1725507626148,22.7212,132.04,131.93,7.5796]
[1725507626770,45.0,132.03,131.92,23.151]
[1725507626988,95.0,132.03,131.92,23.151]
[1725507628852,45.0,132.03,131.93,7.5797]
[1725507629059,7.5764,131.99,131.93,7.5797]
[1725507635788,19.51431573,132.04,131.93,18.9486]
[1725507635961,7.5746,132.02,131.97,7.5774]
[1725507636161,7.5746,132.02,131.96,23.5394]
[1725507636489,6.0964,132.07,131.96,15.9615]
[1725507636490,50.0,132.06,131.96,15.9615]
[1725507637180,6.0964,132.07,131.96,15.9615]
[1725507637477,7.5753,132.01,131.96,15.9615]
[1725507638276,7.5746,132.02,131.96,23.5395]
[1725507638460,7.5752,132.01,131.96,15.9615]
[1725507640686,7.5747,132.02,131.97,7.5774]
[1725507641063,7.5741,132.03,131.98,7.5767]
[1725507641473,7.5735,132.04,131.98,7.5767]
[1725507642085,7.5728,132.05,131.99,7.5763]
[1725507642270,7.5728,132.05,132.0,16.0071]
[1725507643273,7.5734,132.04,132.0,16.0071]
[1725507644374,7.5744,132.03,132.0,16.0071]
[1725507647080,53.23447897,132.1,132.0,16.0071]
[1725507647278,45.0,132.09,132.0,16.0071]
[1725507647588,7.5739,132.04,132.0,16.0071]
[1725507647971,45.0,132.09,132.0,16.0071]
[1725507647972,7.5741,132.03,132.0,16.0071]
[1725507648283,7.5747,132.02,132.0,16.0071]
[1725507648665,7.5751,132.01,132.0,16.0071]
[1725507649080,7.5747,132.02,132.0,16.0071]
[1725507651472,7.574,132.04,132.0,16.0071]
[1725507652488,7.5741,132.03,132.0,16.0071]
[1725507655888,3.30286668,132.06,131.97,21.61]
[1725507656084,45.0,132.07,131.97,21.61]
[1725507656794,7.5792,131.94,131.93,6.447]
[1725507657174,7.5786,131.95,131.93,6.447]
[1725507661784,7.578,131.96,131.93,6.447]
[1725507662798,3.18388259,131.98,131.9,6.2836]
[1725507663004,45.0,131.99,131.9,6.2836]
[1725507664087,7.5792,131.94,131.9,6.2836]
[1725507664483,45.0,131.99,131.9,6.2836]
[1725507664700,48.20113677,132.0,131.9,6.2836]
[1725507665102,7.5786,131.95,131.9,13.8648]
[1725507665896,3.20113677,132.0,131.9,25.2361]
[1725507666200,72.4016,132.04,131.92,24.1234]
[1725507666700,22.4016,132.04,131.93,7.5796]
[1725507667982,24.54616258,132.07,131.95,7.5784]
[1725507668182,24.54616258,132.07,131.96,16.1911]
[1725507668603,50.0,132.06,131.96,16.1911]